fUSD/lending_fUSD_20250525
["ID","MTS","AMOUNT","RATE_DAILY","PERIOD"]
[362325877,1748193060234,-590.91,0.00019999,2]
[362325878,1748193060243,-590.91,0.00019999,2]
[362325879,1748193060253,-590.91,0.00019999,2]
[362325880,1748193060262,-590.91,0.00019999,2]
[362325881,1748193060273,-591.0,0.00019999,2]
[362325882,1748193060283,-554.31076384,0.00019999,2]
[362325883,1748193060293,-500.0,0.00019999,2]
[362325884,1748193060303,-420.0,0.00019999,2]
[362325885,1748193060315,-420.0,0.00019999,2]
[362325886,1748193060324,-420.0,0.00019999,2]
[362325887,1748193060334,-420.0,0.00019999,2]
[362325888,1748193060345,-420.0,0.00019999,2]
[362325889,1748193060354,-151.815191,0.00019999,2]
[362325890,1748193060363,-324.80789805,0.00019999,2]
[362325891,1748193060372,-151.0,0.00019999,2]
[362325892,1748193060382,-420.0,0.00019999,2]
[362325893,1748193060391,-420.0,0.00019999,2]
[362325894,1748193060400,-414.89436848,0.00019999,2]
[362325895,1748193060410,-150.0,0.00019999,2]
[362325896,1748193060420,-420.0,0.00019999,2]
[362325897,1748193060430,-420.0,0.00019999,2]
[362325898,1748193060441,-420.0,0.00019999,2]
[362325899,1748193060451,-152.43,0.00019999,2]
[362325900,1748193060461,-420.0,0.00019999,2]
[362325901,1748193060471,-420.0,0.00019999,2]
[362325902,1748193060481,-420.0,0.00019999,2]
[362325903,1748193060490,-420.0,0.00019999,2]
[362325904,1748193060499,-420.0,0.00019999,2]
[362325905,1748193060509,-420.0,0.00019999,2]
[362325906,1748193060518,-420.0,0.00019999,2]
[362325907,1748193060528,-420.0,0.00019999,2]
[362325908,1748193060537,-372.7959421,0.00019999,2]
[362325909,1748193060547,-150.0,0.00019999,2]
[362325910,1748193060556,-420.0,0.00019999,2]
[362325911,1748193060565,-420.0,0.00019999,2]
[362325912,1748193060576,-420.0,0.00019999,2]
[362325913,1748193060585,-290.63,0.00019999,2]
[362325914,1748193060596,-500.0,0.00019999,2]
[362325915,1748193060606,-529.889524,0.00019999,2]
[362325916,1748193060615,-420.0,0.00019999,2]
[362325917,1748193060625,-420.0,0.00019999,2]
[362325918,1748193060635,-420.0,0.00019999,2]
[362325919,1748193060644,-420.0,0.00019999,2]
[362325920,1748193060654,-151.0,0.00019999,2]
[362325921,1748193060664,-529.889524,0.00019999,2]
[362325922,1748193060674,-151.0,0.00019999,2]
[362325923,1748193060683,-433.66442332,0.00019999,2]
[362325924,1748193060692,-162.04106151,0.00019999,2]
[362325925,1748193060702,-151.0,0.00019999,2]
[362325926,1748193060711,-419.46395349,0.00019999,2]
[362325927,1748193060721,-512.65,0.00019999,2]
[362325928,1748193060731,-420.0,0.00019999,2]
[362325929,1748193060740,-420.0,0.00019999,2]
[362325930,1748193060749,-420.0,0.00019999,2]
[362325931,1748193060758,-451.45546955,0.00019999,2]
[362325932,1748193060768,-420.0,0.00019999,2]
[362325933,1748193060778,-420.0,0.00019999,2]
[362325934,1748193060787,-420.0,0.00019999,2]
[362325935,1748193060797,-420.0,0.00019999,2]
[362325936,1748193060806,-420.0,0.00019999,2]
[362325937,1748193060816,-420.0,0.00019999,2]
[362325938,1748193060825,-420.0,0.00019999,2]
[362325939,1748193060834,-420.0,0.00019999,2]
[362325940,1748193060846,-420.0,0.00019999,2]
[362325941,1748193060855,-420.0,0.00019999,2]
[362325942,1748193060865,-292.361212,0.00019999,2]
[362325943,1748193060875,-420.0,0.00019999,2]
[362325944,1748193060886,-420.0,0.00019999,2]
[362325945,1748193060896,-420.0,0.00019999,2]
[362325946,1748193060905,-357.37769614,0.00019999,2]
[362325947,1748193060914,-420.0,0.00019999,2]
[362325948,1748193060924,-420.0,0.00019999,2]
[362325949,1748193060934,-289.43311638,0.00019999,2]
[362325950,1748193060943,-420.0,0.00019999,2]
[362325951,1748193060953,-420.0,0.00019999,2]
[362325952,1748193060963,-236.52,0.00019999,2]
[362325953,1748193060973,-3217.34,0.00019999,2]
[362325954,1748193060983,-3217.34,0.00019999,2]
[362325955,1748193060993,-3217.34,0.00019999,2]
[362325956,1748193061002,-3217.34,0.00019999,2]
[362325957,1748193061012,-3217.34,0.00019999,2]
[362325958,1748193061024,-3217.34,0.00019999,2]
[362325959,1748193061035,-3217.34,0.00019999,2]
[362325960,1748193061044,-532.52,0.00019999,2]
[362325961,1748193061054,-3217.34,0.00019999,2]
[362325962,1748193061064,-3217.34,0.00019999,2]
[362325963,1748193061073,-532.52,0.00019999,2]
[362325964,1748193061084,-3217.34,0.00019999,2]
[362325965,1748193061096,-532.52,0.00019999,2]
[362325966,1748193061109,-420.0,0.00019999,2]
[362325967,1748193061119,-3217.34,0.00019999,2]
[362325968,1748193061129,-532.52,0.00019999,2]
[362325969,1748193061139,-420.0,0.00019999,2]
[362325970,1748193061148,-3217.34,0.00019999,2]
[362325971,1748193061160,-532.52,0.00019999,2]
[362325972,1748193061169,-420.0,0.00019999,2]
[362325973,1748193061179,-3217.34,0.00019999,2]
[362325974,1748193061189,-532.52,0.00019999,2]
[362325975,1748193061200,-420.0,0.00019999,2]
[362325976,1748193061211,-3217.34,0.00019999,2]
[362325977,1748193061222,-532.52,0.00019999,2]
[362325978,1748193061232,-420.0,0.00019999,2]
[362325979,1748193061242,-3217.34,0.00019999,2]
[362325980,1748193061255,-532.52,0.00019999,2]
[362325981,1748193061266,-420.0,0.00019999,2]
[362325982,1748193061276,-3217.34,0.00019999,2]
[362325983,1748193061287,-532.52,0.00019999,2]
[362325984,1748193061298,-420.0,0.00019999,2]
[362325985,1748193061308,-420.0,0.00019999,2]
[362325986,1748193061319,-3217.34,0.00019999,2]
[362325987,1748193061329,-532.52,0.00019999,2]
[362325988,1748193061342,-368.88,0.00019999,2]
[362325989,1748193061353,-355.32,0.00019999,2]
[362325990,1748193061364,-3217.34,0.00019999,2]
[362325991,1748193061374,-3217.34,0.00019999,2]
[362325992,1748193061386,-532.52,0.00019999,2]
[362325993,1748193061395,-532.52,0.00019999,2]
[362325994,1748193061405,-532.52,0.00019999,2]
[362325995,1748193061414,-3217.34,0.00019999,2]
[362325996,1748193061423,-532.52,0.00019999,2]
[362325997,1748193061432,-532.52,0.00019999,2]
[362325998,1748193061441,-532.52,0.00019999,2]
[362325999,1748193061451,-532.52,0.00019999,2]
[362326000,1748193061461,-532.52,0.00019999,2]
[362326001,1748193061470,-532.52,0.00019999,2]
[362326002,1748193061480,-532.74,0.00019999,2]
[362326003,1748193061489,-420.0,0.00019999,2]
[362326004,1748193061498,-420.0,0.00019999,2]
[362326005,1748193061507,-293.64444895,0.00019999,2]
[362326006,1748193061516,-420.0,0.00019999,2]
[362326007,1748193061525,-420.0,0.00019999,2]
[362326008,1748193061534,-420.0,0.00019999,2]
[362326009,1748193061543,-420.0,0.00019999,2]
[362326010,1748193061552,-420.0,0.00019999,2]
[362326011,1748193061561,-420.0,0.00019999,2]
[362326012,1748193061570,-420.0,0.00019999,2]
[362326013,1748193061579,-420.0,0.00019999,2]
[362326014,1748193061589,-499.8713626,0.00019999,2]
[362326015,1748193061598,-420.0,0.00019999,2]
[362326016,1748193061607,-420.0,0.00019999,2]
[362326017,1748193061616,-420.0,0.00019999,2]
[362326018,1748193061625,-420.0,0.00019999,2]
[362326019,1748193061634,-420.0,0.00019999,2]
[362326020,1748193061643,-420.0,0.00019999,2]
[362326021,1748193061652,-420.0,0.00019999,2]
[362326022,1748193061662,-420.0,0.00019999,2]
[362326023,1748193061671,-420.0,0.00019999,2]
[362326024,1748193061682,-506.7,0.00019999,2]
[362326025,1748193061691,-420.0,0.00019999,2]
[362326026,1748193061700,-420.0,0.00019999,2]
[362326027,1748193061709,-420.0,0.00019999,2]
[362326028,1748193061718,-420.0,0.00019999,2]
[362326029,1748193061727,-420.0,0.00019999,2]
[362326030,1748193061736,-420.0,0.00019999,2]
[362326031,1748193061745,-420.0,0.00019999,2]
[362326032,1748193061754,-420.0,0.00019999,2]
[362326033,1748193061764,-203.46,0.00019999,2]
[362326034,1748193061774,-420.0,0.00019999,2]
[362326035,1748193061783,-420.0,0.00019999,2]
[362326036,1748193061792,-420.0,0.00019999,2]
[362326037,1748193061802,-420.0,0.00019999,2]
[362326038,1748193061811,-420.0,0.00019999,2]
[362326039,1748193061820,-420.0,0.00019999,2]
[362326040,1748193061830,-420.0,0.00019999,2]
[362326041,1748193061839,-420.0,0.00019999,2]
[362326042,1748193061849,-420.0,0.00019999,2]
[362326043,1748193061858,-420.0,0.00019999,2]
[362326044,1748193061868,-420.0,0.00019999,2]
[362326045,1748193061881,-420.0,0.00019999,2]
[362326046,1748193061890,-420.0,0.00019999,2]
[362326047,1748193061899,-420.0,0.00019999,2]
[362326048,1748193061908,-420.0,0.00019999,2]
[362326049,1748193061918,-557.88,0.00019999,2]
[362326050,1748193061928,-181.389476,0.00019999,2]
[362326051,1748193061938,-723.12,0.00019999,2]
[362326052,1748193061948,-723.12,0.00019999,2]
[362326053,1748193061958,-2370.59,0.00019999,2]
[362326054,1748193061968,-723.12,0.00019999,2]
[362326055,1748193061977,-723.12,0.00019999,2]
[362326056,1748193061986,-2370.59,0.00019999,2]
[362326057,1748193061996,-723.12,0.00019999,2]
[362326058,1748193062005,-2370.59,0.00019999,2]
[362326059,1748193062015,-723.12,0.00019999,2]
[362326060,1748193062024,-2370.59,0.00019999,2]
[362326061,1748193062033,-723.12,0.00019999,2]
[362326062,1748193062042,-2370.59,0.00019999,2]
[362326063,1748193062051,-723.12,0.00019999,2]
[362326064,1748193062060,-2370.59,0.00019999,2]
[362326065,1748193062069,-723.12,0.00019999,2]
[362326066,1748193062078,-2370.59,0.00019999,2]
[362326067,1748193062088,-723.12,0.00019999,2]
[362326068,1748193062097,-2370.59,0.00019999,2]
[362326069,1748193062107,-723.12,0.00019999,2]
[362326070,1748193062116,-2370.59,0.00019999,2]
[362326071,1748193062126,-723.12,0.00019999,2]
[362326072,1748193062136,-2370.59,0.00019999,2]
[362326073,1748193062145,-723.12,0.00019999,2]
[362326074,1748193062155,-2370.59,0.00019999,2]
[362326075,1748193062164,-723.12,0.00019999,2]
[362326076,1748193062173,-181.389476,0.00019999,2]
[362326077,1748193062183,-2370.59,0.00019999,2]
[362326078,1748193062192,-723.12,0.00019999,2]
[362326079,1748193062202,-723.12,0.00019999,2]
[362326080,1748193062211,-723.12,0.00019999,2]
[362326081,1748193062220,-723.163353,0.00019999,2]
[362326082,1748193062230,-420.0,0.00019999,2]
[362326083,1748193062240,-420.0,0.00019999,2]
[362326084,1748193062251,-429.87,0.00019999,2]
[362326085,1748193062261,-2370.59,0.00019999,2]
[362326086,1748193062271,-2370.59,0.00019999,2]
[362326087,1748193062280,-2370.59,0.00019999,2]
[362326088,1748193062292,-2370.59,0.00019999,2]
[362326089,1748193062303,-2370.68,0.00019999,2]
[362326090,1748193062311,-420.0,0.00019999,2]
[362326091,1748193062323,-420.0,0.00019999,2]
[362326092,1748193062332,-420.0,0.00019999,2]
[362326093,1748193062343,-420.0,0.00019999,2]
[362326094,1748193062353,-420.0,0.00019999,2]
[362326095,1748193062365,-420.0,0.00019999,2]
[362326096,1748193062377,-420.0,0.00019999,2]
[362326097,1748193062388,-420.0,0.00019999,2]
[362326098,1748193062397,-372.67949869,0.00019999,2]
[362326099,1748193062406,-420.0,0.00019999,2]
[362326100,1748193062415,-420.0,0.00019999,2]
[362326101,1748193062425,-420.0,0.00019999,2]
[362326102,1748193062434,-420.0,0.00019999,2]
[362326103,1748193062443,-500.0,0.00019999,2]
[362326104,1748193062452,-420.0,0.00019999,2]
[362326105,1748193062461,-500.0,0.00019999,2]
[362326106,1748193062470,-153.66671705,0.00019999,2]
[362326107,1748193062479,-500.0,0.00019999,2]
[362326108,1748193062489,-637.52,0.00019999,2]
[362326109,1748193062498,-151.0,0.00019999,2]
[362326110,1748193062507,-1128.35,0.00019999,2]
[362326111,1748193062516,-477.81391583,0.00019999,2]
[362326112,1748193062526,-1128.35,0.00019999,2]
[362326113,1748193062535,-1128.35,0.00019999,2]
[362326114,1748193062544,-151.0,0.00019999,2]
[362326115,1748193062553,-1128.35,0.00019999,2]
[362326116,1748193062564,-1128.35,0.00019999,2]
[362326117,1748193062573,-1128.35,0.00019999,2]
[362326118,1748193062582,-1128.35,0.00019999,2]
[362326119,1748193062592,-1128.35,0.00019999,2]
[362326120,1748193062601,-1128.35,0.00019999,2]
[362326121,1748193062610,-1128.35,0.00019999,2]
[362326122,1748193062619,-1128.35,0.00019999,2]
[362326123,1748193062628,-1128.35,0.00019999,2]
[362326124,1748193062637,-1128.35,0.00019999,2]
[362326125,1748193062648,-1128.35,0.00019999,2]
[362326126,1748193062658,-1128.35,0.00019999,2]
[362326127,1748193062808,-1128.35,0.00019999,2]
[362326128,1748193062818,-1128.4,0.00019999,2]
[362326129,1748193062827,-529.65,0.00019999,2]
[362326130,1748193062837,-529.65,0.00019999,2]
[362326131,1748193062847,-529.65,0.00019999,2]
[362326132,1748193062857,-529.65,0.00019999,2]
[362326133,1748193062869,-529.65,0.00019999,2]
[362326134,1748193062879,-529.65,0.00019999,2]
[362326135,1748193062888,-529.65,0.00019999,2]
[362326136,1748193062898,-529.65,0.00019999,2]
[362326137,1748193062909,-529.65,0.00019999,2]
[362326138,1748193062920,-529.65,0.00019999,2]
[362326139,1748193062929,-529.65,0.00019999,2]
[362326140,1748193062939,-529.65,0.00019999,2]
[362326141,1748193062951,-529.65,0.00019999,2]
[362326142,1748193062960,-529.65,0.00019999,2]
[362326143,1748193062970,-529.65,0.00019999,2]
[362326144,1748193062979,-529.65,0.00019999,2]
[362326145,1748193062989,-529.65,0.00019999,2]
[362326146,1748193062998,-529.65,0.00019999,2]
[362326147,1748193063008,-529.65,0.00019999,2]
[362326148,1748193063017,-529.85,0.00019999,2]
[362326149,1748193063027,-1289.878685,0.00019999,2]
[362326150,1748193063037,-420.0,0.00019999,2]
[362326151,1748193063046,-420.0,0.00019999,2]
[362326152,1748193063056,-420.0,0.00019999,2]
[362326153,1748193063066,-504.9,0.00019999,2]
[362326154,1748193063076,-420.0,0.00019999,2]
[362326155,1748193063085,-380.20275439,0.00019999,2]
[362326156,1748193063096,-1289.878685,0.00019999,2]
[362326157,1748193063106,-420.0,0.00019999,2]
[362326158,1748193063116,-420.0,0.00019999,2]
[362326159,1748193063125,-420.0,0.00019999,2]
[362326160,1748193063135,-420.0,0.00019999,2]
[362326161,1748193063145,-420.0,0.00019999,2]
[362326162,1748193063154,-311.03,0.00019999,2]
[362326163,1748193063164,-420.0,0.00019999,2]
[362326164,1748193063174,-420.0,0.00019999,2]
[362326165,1748193063184,-449.10016462,0.00019999,2]
[362326166,1748193063194,-151.0,0.00019999,2]
[362326167,1748193063204,-420.0,0.00019999,2]
[362326168,1748193063214,-420.0,0.00019999,2]
[362326169,1748193063223,-420.0,0.00019999,2]
[362326170,1748193063233,-420.0,0.00019999,2]
[362326171,1748193063242,-480.8,0.00019999,2]
[362326172,1748193063252,-420.0,0.00019999,2]
[362326173,1748193063262,-231.552314,0.00019999,2]
[362326174,1748193063272,-350.80374215,0.00019999,2]
[362326175,1748193063282,-420.0,0.00019999,2]
[362326176,1748193063291,-420.0,0.00019999,2]
[362326177,1748193063301,-420.0,0.00019999,2]
[362326178,1748193063310,-443.91450599,0.00019999,2]
[362326179,1748193063320,-1050.1,0.00019999,2]
[362326180,1748193063329,-1050.1,0.00019999,2]
[362326181,1748193063340,-1050.1,0.00019999,2]
[362326182,1748193063349,-1050.1,0.00019999,2]
[362326183,1748193063359,-1050.1,0.00019999,2]
[362326184,1748193063368,-1050.1,0.00019999,2]
[362326185,1748193063377,-1050.1,0.00019999,2]
[362326186,1748193063387,-1050.1,0.00019999,2]
[362326187,1748193063397,-1050.1,0.00019999,2]
[362326188,1748193063407,-1050.1,0.00019999,2]
[362326189,1748193063420,-420.0,0.00019999,2]
[362326190,1748193063430,-1050.1,0.00019999,2]
[362326191,1748193063440,-420.0,0.00019999,2]
[362326192,1748193063450,-1050.1,0.00019999,2]
[362326193,1748193063460,-473.25,0.00019999,2]
[362326194,1748193063470,-1050.1,0.00019999,2]
[362326195,1748193063480,-1050.1,0.00019999,2]
[362326196,1748193063490,-1050.1,0.00019999,2]
[362326197,1748193063500,-1050.1,0.00019999,2]
[362326198,1748193063510,-420.0,0.00019999,2]
[362326199,1748193063520,-1050.1,0.00019999,2]
[362326200,1748193063530,-420.0,0.00019999,2]
[362326201,1748193063540,-1050.1,0.00019999,2]
[362326202,1748193063550,-556.08,0.00019999,2]
[362326203,1748193063562,-1050.1,0.00019999,2]
[362326204,1748193063572,-1050.25,0.00019999,2]
[362326205,1748193063581,-151.0,0.00019999,2]
[362326206,1748193063591,-2403.2,0.00019999,2]
[362326207,1748193063601,-2403.2,0.00019999,2]
[362326208,1748193063611,-2403.2,0.00019999,2]
[362326209,1748193063620,-2403.2,0.00019999,2]
[362326210,1748193063630,-2403.2,0.00019999,2]
[362326211,1748193063640,-2403.2,0.00019999,2]
[362326212,1748193063649,-2403.2,0.00019999,2]
[362326213,1748193063659,-2403.2,0.00019999,2]
[362326214,1748193063668,-2403.2,0.00019999,2]
[362326215,1748193063677,-2403.2,0.00019999,2]
[362326216,1748193063686,-2403.2,0.00019999,2]
[362326217,1748193063695,-2403.2,0.00019999,2]
[362326218,1748193063704,-2403.2,0.00019999,2]
[362326219,1748193063714,-375.36982475,0.00019999,2]
[362326220,1748193063987,-2027.83017525,0.00019999,2]
[362326221,1748193063997,-2403.2,0.00019999,2]
[362326222,1748193064006,-2403.2,0.00019999,2]
[362326223,1748193064017,-151.0,0.00019999,2]
[362326224,1748193064027,-2403.2,0.00019999,2]
[362326225,1748193064036,-2403.43768712,0.00019999,2]
[362326226,1748193064046,-151.0,0.00019999,2]
[362326227,1748193064055,-151.0,0.00019999,2]
[362326228,1748193064065,-317.37918071,0.00019999,2]
[362326229,1748193064281,-208.0,0.00017084,2]
[362326230,1748193064291,-1000.0,0.00018952,2]
[362326231,1748193064300,-420.0,0.00019369,2]
[362326232,1748193064310,-420.0,0.00019993,2]
[362326233,1748193064319,-102.62081929,0.00019999,2]
[362326234,1748193064331,-420.0,0.00019999,2]
[362326235,1748193064339,-151.0,0.00019999,2]
[362326236,1748193064350,-536.95062178,0.00019999,2]
[362326237,1748193064359,-185.304828,0.00019999,2]
[362326238,1748193064368,-151.0,0.00019999,2]
[362326239,1748193064377,-150.0,0.0002,2]
[362326240,1748193064387,-150.0,0.0002,2]
[362326241,1748193064396,-938.0,0.0002,2]
[362326242,1748193064406,-1311.0,0.0002,2]
[362326243,1748193064416,-214.88193218,0.0002,2]
[362326244,1748193064426,-208616.78510666,0.0002,2]
[362326245,1748193064439,-23732.94844104,0.0002,2]
[362326246,1748193064499,-23056.3359,0.0001952,2]
[362326247,1748193064510,-253.5724952,0.0002,2]
[362326248,1748193064557,-4915.46862083,0.0002,2]
[362326249,1748193064573,-16216.37865834,0.0002,2]
[362326250,1748193064584,-9152.16557618,0.0002,2]
[362326252,1748193119093,250.0,0.00015,2]
[362326253,1748193120888,-153.55011473,0.00017,2]
[362326262,1748193131576,210.0,0.00016084,2]
[362326264,1748193288162,238.0,0.0001611,2]
[362326265,1748193288193,-152.0,0.0001658,2]
[362326266,1748193288465,238.0,0.0001565,2]
[362326267,1748193288761,238.0,0.0001519,2]
[362326268,1748193292586,-86.0,0.0001658,2]
[362326269,1748193292611,-86.57041302,0.00017,2]
[362326270,1748193294635,-59.87947225,0.00017,2]
[362326271,1748193294657,-238.0,0.0001704,2]
[362326272,1748193404180,173.91,0.00014596,2]
[362326276,1748193663950,430.86,0.00013699,2]
[362326277,1748193765432,-280.27913836,0.0001633,2]
[362326278,1748193768897,-319.10948224,0.0001633,2]
[362326279,1748193773381,-200.00051776,0.0001633,2]
[362326280,1748193775380,-185.47345464,0.0001633,2]
[362326281,1748193778887,-160.6780751,0.0001633,2]
[362326282,1748193781292,-136.9293319,0.0001633,2]
[362326299,1748194232231,-210.0,0.00016744,2]
[362326300,1748194232241,-250.0,0.00017466,2]
[362326301,1748194232251,-238.0,0.0001751,2]
[362326302,1748194232260,-366.46579,0.00017605,2]
[362326303,1748194232270,-33.52581,0.00017693,2]
[362326304,1748194232289,-216.47419,0.00017693,2]
[362326305,1748194232299,-200.0,0.00017787,2]
[362326306,1748194232308,-238.0,0.0001797,2]
[362326307,1748194232319,-76.06672556,0.00018044,2]
[362326308,1748194232331,-100.68213856,0.00018044,2]
[362326309,1748194232340,-292.60120644,0.00018121,2]
[362326310,1748194232351,-405.57,0.00018121,2]
[362326311,1748194232367,-547.25853702,0.00018121,2]
[362326312,1748194232403,-55.24025654,0.00018121,2]
[362326313,1748194232412,-531.65018157,0.00018144,2]
[362326314,1748194232423,-468.34981843,0.00018144,2]
[362326315,1748194232432,-743.82777765,0.00018153,2]
[362326316,1748194232444,-1427.41222235,0.00018153,2]
[362326317,1748194232454,-562.3206707,0.00018156,2]
[362326318,1748194232469,-270.06670261,0.00018156,2]
[362326319,1748194232479,-321.79774838,0.00018156,2]
[362326320,1748194232490,-329.3988,0.00018156,2]
[362326321,1748194232519,-25093.02127065,0.00018156,2]
[362326322,1748194232531,-255.97559429,0.00018156,2]
[362326351,1748194238097,-500.0,0.00018155,2]
[362326352,1748194238107,-190.12231912,0.00018155,2]
[362326353,1748194238117,-500.0,0.00018155,2]
[362326354,1748194238126,-500.0,0.00018155,2]
[362326355,1748194238136,-500.0,0.00018155,2]
[362326356,1748194238145,-500.0,0.00018155,2]
[362326357,1748194238155,-500.0,0.00018155,2]
[362326358,1748194238164,-350.42751767,0.00018155,2]
[362326359,1748194238173,-500.0,0.00018155,2]
[362326360,1748194238183,-500.0,0.00018155,2]
[362326361,1748194238193,-300.0,0.00018155,2]
[362326362,1748194238204,-4033.11253119,0.00018156,2]
[362326363,1748194238216,-402.32099964,0.00018156,2]
[362326364,1748194238227,-373.2110064,0.00018156,2]
[362326365,1748194238239,-393.912,0.00018156,2]
[362326366,1748194238250,-722.135001,0.00018156,2]
[362326367,1748194238262,-633.053,0.00018156,2]
[362326368,1748194238275,-42965.24290198,0.00018156,2]
[362326369,1748194238288,-517.17495246,0.00018156,2]
[362326370,1748194238485,-4116.06230995,0.00018156,2]
[362326371,1748194238496,-9131.76966047,0.00018156,2]
[362326427,1748194240314,-2122.6364667,0.00018156,2]
[362326428,1748194240327,-451.22522627,0.00018156,2]
[362326429,1748194240338,-9099.54423923,0.00018156,2]
[362326430,1748194240349,-487.52557497,0.00018156,2]
[362326431,1748194240503,-490.90844538,0.00018156,2]
[362326432,1748194240516,-3000.0,0.00018156,2]
[362326433,1748194240539,-296.82371763,0.00018156,2]
[362326434,1748194240551,-1214.98276237,0.00018156,2]
[362326435,1748194240562,-1629.89499954,0.00018156,2]
[362326436,1748194240573,-289.31548912,0.00018156,2]
[362326437,1748194240584,-754.3143952,0.00018156,2]
[362326438,1748194240756,-12109.31353387,0.00018156,2]
[362326439,1748194240768,-300.0,0.00018196,2]
[362326440,1748194240778,-300.0,0.00018197,2]
[362326441,1748194240787,-1200.0,0.00018197,2]
[362326442,1748194240796,-500.0,0.00018198,2]
[362326443,1748194240805,-4000.0,0.00018198,2]
[362326444,1748194240814,-348.35,0.00018208,2]
[362326445,1748194240823,-150.0,0.0001823,7]
[362326446,1748194240833,-350.66386429,0.00018252,2]
[362326447,1748194240842,-3840.34978005,0.00018262,2]
[362326448,1748194242437,-182.79320078,0.00016744,2]
[362326460,1748194243289,-29.20677922,0.00016744,2]
[362326461,1748194243299,-3015.90483146,0.00018262,2]
[362326462,1748194243346,-10580.17878912,0.00018262,2]
[362326463,1748194243358,-870.7,0.00018262,2]
[362326464,1748194243564,-5592.86659937,0.00018262,2]
[362326465,1748194243574,-200.0,0.00018272,2]
[362326466,1748194243583,-1360.89,0.00018274,2]
[362326467,1748194243592,-833.58,0.00018304,2]
[362326468,1748194243602,-704.55,0.00018311,2]
[362326469,1748194243611,-335.03,0.00018318,2]
[362326470,1748194243621,-164.46,0.00018333,2]
[362326471,1748194243630,-362.0,0.00018416,2]
[362326472,1748194243640,-238.0,0.0001843,2]
[362326473,1748194243649,-158.79,0.00018449,2]
[362326474,1748194243658,-158.79,0.0001846,2]
[362326475,1748194243668,-158.79,0.0001847,2]
[362326476,1748194243677,-158.79,0.0001848,2]
[362326477,1748194243687,-158.79,0.0001849,2]
[362326478,1748194243696,-158.79,0.00018501,2]
[362326480,1748194243707,-158.79,0.00018511,2]
[362326481,1748194243716,-250.0,0.00018513,2]
[362326483,1748194243727,-158.79,0.00018521,2]
[362326485,1748194243736,-158.79,0.00018531,2]
[362326486,1748194243745,-158.79,0.00018542,2]
[362326487,1748194243754,-150.0,0.00018554,2]
[362326488,1748194243764,-200.0,0.00018575,2]
[362326489,1748194243773,-1282.47,0.00018594,2]
[362326490,1748194243782,-1189.0,0.00018624,2]
[362326491,1748194243792,-1093.6319277,0.00018624,2]
[362326493,1748194243801,-200.0,0.000187,2]
[362326494,1748194243811,-2751.0,0.00018774,2]
[362326495,1748194243821,-200.0,0.00018852,2]
[362326496,1748194243831,-678.23,0.00018856,2]
[362326498,1748194243840,-238.0,0.000189,2]
[362326499,1748194243849,-151.0,0.00018999,2]
[362326501,1748194243858,-1199.20597015,0.00018999,2]
[362326503,1748194243872,-668.65185757,0.00018999,2]
[362326505,1748194243882,-668.65185757,0.00018999,2]
[362326506,1748194243891,-207.4,0.00018999,2]
[362326507,1748194243901,-151.08541904,0.00018999,2]